fUSD/lending_fUSD_20260408
["ID","MTS","AMOUNT","RATE_DAILY","PERIOD"]
[420065979,1775646644385,-150.0,0.00013425,2]
[420065980,1775646644396,-637.0,0.00013425,2]
[420065981,1775646644406,-150.0,0.00013425,2]
[420065982,1775646644417,-286.3666211,0.00013425,2]
[420065983,1775646644428,-637.0,0.00013425,2]
[420065984,1775646644439,-637.0,0.00013425,2]
[420065985,1775646644449,-637.0,0.00013425,2]
[420065986,1775646644462,-637.0,0.00013425,2]
[420065987,1775646644473,-637.0,0.00013425,2]
[420065988,1775646644483,-637.0,0.00013425,2]
[420065989,1775646644494,-637.0,0.00013425,2]
[420065990,1775646644504,-637.0,0.00013425,2]
[420065991,1775646644515,-637.0,0.00013425,2]
[420065992,1775646644526,-637.0,0.00013425,2]
[420065993,1775646644537,-637.0,0.00013425,2]
[420065994,1775646644547,-637.0,0.00013425,2]
[420065995,1775646644557,-637.0,0.00013425,2]
[420065996,1775646644568,-637.0,0.00013425,2]
[420065997,1775646644579,-637.0,0.00013425,2]
[420065998,1775646644589,-637.0,0.00013425,2]
[420065999,1775646644599,-637.0,0.00013425,2]
[420066000,1775646644609,-500.0,0.00013425,2]
[420066001,1775646644620,-637.0,0.00013425,2]
[420066002,1775646644631,-520.29151548,0.00013425,2]
[420066003,1775646644642,-500.0,0.00013425,2]
[420066004,1775646644652,-500.0,0.00013425,2]
[420066005,1775646644663,-637.0,0.00013425,2]
[420066006,1775646644673,-500.0,0.00013425,2]
[420066007,1775646644684,-500.0,0.00013425,2]
[420066008,1775646644695,-500.0,0.00013425,2]
[420066009,1775646644706,-152.12238144,0.00013425,2]
[420066010,1775646644717,-500.0,0.00013425,2]
[420066011,1775646644727,-500.0,0.00013425,2]
[420066012,1775646644737,-500.0,0.00013425,2]
[420066013,1775646644747,-500.0,0.00013425,2]
[420066014,1775646644758,-500.0,0.00013425,2]
[420066015,1775646644768,-500.0,0.00013425,2]
[420066016,1775646644779,-500.0,0.00013425,2]
[420066017,1775646644790,-500.0,0.00013425,2]
[420066018,1775646644800,-500.0,0.00013425,2]
[420066019,1775646644811,-500.0,0.00013425,2]
[420066020,1775646644821,-412.62015671,0.00013425,2]
[420066021,1775646644832,-500.0,0.00013425,2]
[420066022,1775646644842,-637.0,0.00013425,2]
[420066023,1775646644853,-500.0,0.00013425,2]
[420066024,1775646644862,-500.0,0.00013425,2]
[420066025,1775646644871,-393.21604,0.00013586,2]
[420066026,1775646644882,-923.77800911,0.00013587,2]
[420066027,1775646644892,-339.94317143,0.00013624,2]
[420066028,1775646644903,-1377.42282659,0.00013624,2]
[420066029,1775646644913,-200.0,0.00013624,2]
[420066030,1775646644924,-150.0,0.00013699,2]
[420066031,1775646644934,-150.0,0.00013699,2]
[420066032,1775646644945,-150.0,0.00013699,2]
[420066033,1775646644955,-151.0,0.00013699,2]
[420066034,1775646644966,-2443.24,0.00013699,2]
[420066035,1775646644976,-2647.56,0.00013699,2]
[420066036,1775646644987,-500.0,0.00013699,2]
[420066037,1775646644998,-500.0,0.00013699,2]
[420066038,1775646645009,-500.0,0.00013699,2]
[420066039,1775646645018,-500.0,0.00013699,2]
[420066040,1775646645028,-500.0,0.00013699,2]
[420066041,1775646645039,-500.0,0.00013699,2]
[420066042,1775646645050,-500.0,0.00013699,2]
[420066043,1775646645061,-500.0,0.00013699,2]
[420066044,1775646645071,-500.0,0.00013699,2]
[420066045,1775646645082,-500.0,0.00013699,2]
[420066046,1775646645092,-538.78941312,0.00013699,2]
[420066047,1775646645103,-500.0,0.00013699,2]
[420066048,1775646645113,-233.84757239,0.00013699,2]
[420066049,1775646645124,-500.0,0.00013699,2]
[420066050,1775646645135,-501.53334874,0.00013699,2]
[420066051,1775646645145,-500.0,0.00013699,2]
[420066052,1775646645157,-500.0,0.00013699,2]
[420066053,1775646645166,-500.0,0.00013699,2]
[420066054,1775646645177,-1000.0,0.00013699,7]
[420066055,1775646645187,-500.0,0.00013699,2]
[420066056,1775646645198,-500.0,0.00013699,2]
[420066057,1775646645209,-500.0,0.00013699,2]
[420066058,1775646645220,-49954.4844927,0.00013699,2]
[420066059,1775646645230,-154.87,0.00013699,2]
[420066060,1775646645240,-813.0,0.00013699,2]
[420066061,1775646645250,-813.0,0.00013699,2]
[420066062,1775646645260,-813.0,0.00013699,2]
[420066063,1775646645270,-813.0,0.00013699,2]
[420066064,1775646645280,-813.0,0.00013699,2]
[420066065,1775646645290,-813.0,0.00013699,2]
[420066066,1775646645299,-813.0,0.00013699,2]
[420066067,1775646645309,-813.0,0.00013699,2]
[420066068,1775646645319,-813.0,0.00013699,2]
[420066069,1775646645329,-813.0,0.00013699,2]
[420066070,1775646645339,-813.0,0.00013699,2]
[420066071,1775646645349,-813.0,0.00013699,2]
[420066072,1775646645359,-813.0,0.00013699,2]
[420066073,1775646645380,-813.0,0.00013699,2]
[420066074,1775646645392,-813.0,0.00013699,2]
[420066075,1775646645402,-813.0,0.00013699,2]
[420066076,1775646645413,-813.0,0.00013699,2]
[420066077,1775646645424,-813.0,0.00013699,2]
[420066078,1775646645434,-813.0,0.00013699,2]
[420066079,1775646645444,-813.0,0.00013699,2]
[420066080,1775646645451,-813.0,0.00013699,2]
[420066081,1775646645460,-813.0,0.00013699,2]
[420066082,1775646645468,-813.0,0.00013699,2]
[420066083,1775646645477,-835.19151233,0.00013699,2]
[420066086,1775646645702,-2170.0,0.00013723,5]
[420066087,1775646645712,-481.98,0.00013858,2]
[420066088,1775646645722,-380.0,0.00013889,2]
[420066089,1775646645732,-6453.0,0.00013889,2]
[420066090,1775646645741,-150.0,0.00013973,2]
[420066091,1775646645750,-150.0,0.00013973,2]
[420066092,1775646645760,-171.59,0.00013976,2]
[420066093,1775646645770,-1500.0,0.00014,2]
[420066094,1775646645779,-2129.0,0.00014103,2]
[420066095,1775646645789,-150.0,0.00014129,2]
[420066096,1775646645799,-150.0,0.00014129,2]
[420066097,1775646645809,-150.0,0.00014129,2]
[420066098,1775646645819,-150.0,0.00014129,2]
[420066099,1775646645828,-150.0,0.00014129,2]
[420066100,1775646645837,-150.0,0.00014129,2]
[420066101,1775646645847,-150.0,0.00014129,2]
[420066102,1775646645857,-257.21753866,0.00014129,2]
[420066103,1775646645868,-235.51154759,0.00014129,2]
[420066104,1775646645878,-150.0,0.00014129,2]
[420066105,1775646645887,-150.0,0.00014129,2]
[420066106,1775646645897,-150.0,0.00014129,2]
[420066107,1775646645906,-210.042671,0.0001414,7]
[420066108,1775646645916,-1428.38747117,0.00014172,2]
[420066109,1775646645926,-200.0,0.00014172,2]
[420066110,1775646645936,-150.0,0.00014183,2]
[420066111,1775646645945,-150.0,0.00014187,2]
[420066112,1775646645955,-155.32006583,0.00014199,2]
[420066113,1775646645965,-150.0,0.00014207,2]
[420066114,1775646645974,-150.0,0.00014207,2]
[420066115,1775646645983,-150.0,0.00014227,2]
[420066116,1775646645993,-150.0,0.00014227,2]
[420066117,1775646646002,-506.0,0.00014234,2]
[420066118,1775646646012,-150.0,0.00014237,2]
[420066119,1775646646022,-150.0,0.00014245,2]
[420066120,1775646646031,-150.0,0.00014247,2]
[420066121,1775646646041,-1000.0,0.00014247,2]
[420066122,1775646646053,-1000.0,0.00014247,2]
[420066123,1775646646062,-1000.0,0.00014247,2]
[420066124,1775646646071,-1000.0,0.00014247,2]
[420066125,1775646646080,-1000.0,0.00014247,2]
[420066126,1775646646090,-1000.0,0.00014247,2]
[420066127,1775646646100,-1000.0,0.00014247,2]
[420066128,1775646646109,-1000.0,0.00014247,2]
[420066129,1775646646119,-1000.0,0.00014247,2]
[420066130,1775646646128,-1000.0,0.00014247,2]
[420066131,1775646646138,-1000.0,0.00014247,2]
[420066132,1775646646148,-501.12672973,0.00014247,2]
[420066133,1775646646157,-1000.0,0.00014247,2]
[420066134,1775646646166,-1000.0,0.00014247,2]
[420066135,1775646646176,-1144.24089955,0.00014247,2]
[420066136,1775646646186,-392.34268442,0.00014247,2]
[420066137,1775646646195,-150.0,0.00014286,2]
[420066138,1775646646204,-150.0,0.00014286,2]
[420066139,1775646646214,-150.0,0.00014291,2]
[420066140,1775646646223,-150.0,0.00014303,2]
[420066141,1775646646233,-150.0,0.00014303,2]
[420066142,1775646646244,-150.0,0.00014325,2]
[420066143,1775646646254,-150.0,0.00014325,2]
[420066144,1775646646264,-150.0,0.00014325,2]
[420066145,1775646646273,-150.0,0.00014345,2]
[420066146,1775646646283,-150.0,0.00014361,2]
[420066147,1775646646293,-150.0,0.00014364,2]
[420066148,1775646646303,-150.0,0.00014364,2]
[420066149,1775646646312,-2647.56,0.00014384,2]
[420066150,1775646646322,-7323.30859515,0.0001439,2]
[420066151,1775646646332,-150.0,0.00014399,2]
[420066152,1775646646341,-150.0,0.00014419,2]
[420066153,1775646646350,-150.0,0.00014423,2]
[420066154,1775646646360,-150.0,0.00014423,2]
[420066155,1775646646370,-258.67007452,0.00014437,2]
[420066156,1775646646380,-150.0,0.00014443,2]
[420066157,1775646646389,-150.0,0.00014443,2]
[420066159,1775646646399,-150.0,0.00014443,2]
[420066161,1775646646408,-150.0,0.00014454,2]
[420066163,1775646646418,-150.0,0.00014478,2]
[420066165,1775646646428,-150.0,0.00014478,2]
[420066167,1775646646438,-150.0,0.00014508,2]
[420066169,1775646646448,-150.0,0.00014521,2]
[420066171,1775646646458,-150.0,0.00014521,2]
[420066173,1775646646468,-150.0,0.00014521,2]
[420066175,1775646646477,-150.0,0.00014521,2]
[420066177,1775646646488,-150.0,0.00014521,2]
[420066179,1775646646498,-150.0,0.00014536,2]
[420066181,1775646646508,-150.0,0.00014562,2]
[420066183,1775646646518,-4332.59857049,0.0001458,2]
[420066185,1775646646528,-923.77800911,0.00014594,2]
[420066187,1775646646538,-150.0,0.00014594,2]
[420066189,1775646646548,-150.0,0.000146,2]
[420066191,1775646646558,-150.0,0.000146,2]
[420066193,1775646646568,-263.9185,0.000146,2]
[420066195,1775646646579,-150.0,0.00014616,2]
[420066197,1775646646589,-150.0,0.00014619,2]
[420066199,1775646646598,-150.0,0.00014619,2]
[420066201,1775646646608,-150.0,0.00014652,2]
[420066203,1775646646617,-150.0,0.00014652,2]
[420066204,1775646646625,-226.997702,0.0001466,7]
[420066206,1775646646635,-150.0,0.0001467,2]
[420066208,1775646646645,-150.0,0.00014678,2]
[420066210,1775646646655,-150.0,0.00014678,2]
[420066211,1775646646663,-150.0,0.0001471,2]
[420066212,1775646646672,-150.0,0.00014717,2]
[420066213,1775646646682,-150.0,0.00014717,2]
[420066214,1775646646692,-150.0,0.00014717,2]
[420066215,1775646646703,-599.60298507,0.00014719,2]
[420066216,1775646646712,-646.65982734,0.00014719,2]
[420066217,1775646646722,-1481.23780761,0.0001472,2]
[420066218,1775646646731,-200.0,0.0001472,2]
[420066219,1775646646741,-150.0,0.00014724,2]
[420066220,1775646646751,-3595.0,0.00014735,2]
[420066221,1775646646761,-150.0,0.00014757,2]
[420066222,1775646646770,-150.0,0.00014757,2]
[420066223,1775646646780,-150.0,0.00014757,2]
[420066224,1775646646789,-3595.0,0.00014768,2]
[420066225,1775646646804,-150.0,0.00014768,2]
[420066226,1775646646815,-150.0,0.00014778,2]
[420066227,1775646646825,-1500.0,0.00014795,2]
[420066228,1775646646834,-1500.0,0.00014795,2]
[420066229,1775646646843,-1315.21682164,0.00014795,2]
[420066230,1775646646853,-676.66503354,0.00014795,2]
[420066231,1775646646862,-1018.40309967,0.00014795,2]
[420066232,1775646646872,-502.38567456,0.00014795,2]
[420066233,1775646646882,-1500.0,0.00014795,2]
[420066234,1775646646892,-1500.0,0.00014795,2]
[420066235,1775646646905,-1500.0,0.00014795,2]
[420066236,1775646646915,-1500.0,0.00014795,2]
[420066237,1775646646925,-1500.0,0.00014795,2]
[420066238,1775646646935,-1500.0,0.00014795,2]
[420066239,1775646646944,-1500.0,0.00014795,2]
[420066240,1775646646954,-150.0,0.00014816,2]
[420066241,1775646646964,-150.0,0.00014816,2]
[420066242,1775646646973,-150.0,0.00014826,2]
[420066243,1775646646984,-150.0,0.00014826,2]
[420066244,1775646646995,-150.0,0.00014832,2]
[420066245,1775646647005,-150.0,0.00014835,2]
[420066246,1775646647015,-150.0,0.00014835,2]
[420066247,1775646647024,-3595.0,0.00014855,2]
[420066248,1775646647034,-3595.0,0.00014858,2]
[420066249,1775646647044,-3595.0,0.00014865,2]
[420066250,1775646647054,-4349.0,0.00014869,2]
[420066251,1775646647064,-150.0,0.00014885,2]
[420066252,1775646647073,-150.0,0.00014887,2]
[420066253,1775646647083,-150.0,0.00014914,2]
[420066254,1775646647095,-150.0,0.00014914,2]
[420066255,1775646647105,-150.0,0.00014914,2]
[420066256,1775646647114,-150.0,0.00014914,2]
[420066257,1775646647124,-150.0,0.00014914,2]
[420066258,1775646647134,-150.0,0.00014941,2]
[420066259,1775646647144,-150.0,0.00014943,2]
[420066260,1775646647153,-3595.0,0.0001499,2]
[420066261,1775646647163,-150.0,0.00014992,2]
[420066262,1775646647172,-150.0,0.00014992,2]
[420066263,1775646647181,-150.0,0.00014995,2]
[420066264,1775646647191,-300.0,0.00015,2]
[420066265,1775646647200,-2068.01430131,0.00015,2]
[420066266,1775646647211,-2756.92717347,0.00015,2]
[420066267,1775646647220,-160.0,0.00015,2]
[420066268,1775646647230,-1007.07827575,0.00015,2]
[420066269,1775646647240,-150.0,0.00015001,2]
[420066270,1775646647250,-150.0,0.00015001,2]
[420066271,1775646647261,-150.0,0.00015012,2]
[420066272,1775646647272,-150.0,0.00015012,2]
[420066273,1775646647282,-150.0,0.00015049,2]
[420066274,1775646647292,-150.0,0.00015059,2]
[420066275,1775646647302,-870.19,0.00015068,2]
[420066276,1775646647312,-2647.56,0.00015068,2]
[420066277,1775646647322,-150.0,0.00015071,2]
[420066278,1775646647332,-150.0,0.00015071,2]
[420066279,1775646647342,-150.0,0.00015071,2]
[420066280,1775646647352,-4349.0,0.00015084,2]
[420066281,1775646647362,-150.0,0.00015103,2]
[420066282,1775646647372,-10000.0,0.00015105,15]
[420066283,1775646647382,-10000.0,0.00015105,15]
[420066284,1775646647392,-10000.0,0.00015105,15]
[420066285,1775646647401,-2089.0,0.00015105,15]
[420066286,1775646647411,-150.0,0.0001511,2]
[420066287,1775646647421,-150.0,0.0001511,2]
[420066288,1775646647431,-150.0,0.0001511,2]
[420066289,1775646647442,-150.0,0.00015117,2]
[420066290,1775646647453,-3595.0,0.00015143,2]
[420066291,1775646647462,-150.0,0.00015149,2]
[420066292,1775646647472,-150.0,0.00015149,2]
[420066293,1775646647482,-150.0,0.00015157,2]
[420066294,1775646647492,-3595.0,0.00015175,2]
[420066295,1775646647501,-150.0,0.00015175,2]
[420066296,1775646647511,-150.0,0.00015175,2]
[420066297,1775646647521,-4349.0,0.00015182,2]
[420066298,1775646647530,-3200.0,0.00015186,2]
[420066299,1775646647540,-3595.0,0.00015193,2]
[420066300,1775646647551,-5310.60071211,0.000152,2]
[420066301,1775646647562,-5000.0,0.000152,2]
[420066302,1775646647572,-5000.0,0.000152,2]
[420066303,1775646647583,-5000.0,0.000152,2]
[420066304,1775646647594,-5000.0,0.000152,2]
[420066305,1775646647603,-150.0,0.00015208,2]
[420066306,1775646647614,-150.0,0.00015208,2]
[420066307,1775646647623,-150.0,0.00015211,2]
[420066308,1775646647633,-150.0,0.00015228,2]
[420066309,1775646647643,-150.0,0.00015228,2]
[420066310,1775646647652,-4349.0,0.00015229,2]
[420066311,1775646647663,-150.0,0.00015233,2]
[420066312,1775646647673,-3595.0,0.00015249,2]
[420066313,1775646647683,-3595.0,0.00015258,2]
[420066314,1775646647693,-183.0,0.00015265,2]
[420066315,1775646647703,-150.0,0.00015266,2]
[420066316,1775646647713,-1536.04360649,0.00015268,2]
[420066317,1775646647722,-200.0,0.00015268,2]
[420066318,1775646647732,-400.0,0.00015268,2]
[420066319,1775646647742,-400.0,0.00015268,2]
[420066320,1775646647752,-400.0,0.00015268,2]
[420066321,1775646647761,-400.0,0.00015268,2]
[420066322,1775646647771,-400.0,0.00015268,2]
[420066323,1775646647781,-400.0,0.00015268,2]
[420066324,1775646647791,-400.0,0.00015268,2]
[420066325,1775646647801,-400.0,0.00015268,2]
[420066326,1775646647811,-546.0,0.00015268,2]
[420066327,1775646647820,-3595.0,0.00015269,2]
[420066328,1775646647830,-9035.0,0.00015277,2]
[420066329,1775646647839,-150.0,0.00015292,2]
[420066330,1775646647849,-350.0,0.00015297,2]
[420066331,1775646647859,-150.0,0.00015306,2]
[420066332,1775646647868,-150.0,0.00015306,2]
[420066333,1775646647878,-150.0,0.00015306,2]
[420066334,1775646647887,-150.0,0.00015306,2]
[420066335,1775646647897,-150.0,0.00015306,2]
[420066336,1775646647906,-150.0,0.0001532,2]
[420066337,1775646647917,-254.25810122,0.00015342,2]
[420066338,1775646647928,-2000.0,0.00015342,2]
[420066339,1775646647937,-2000.0,0.00015342,2]
[420066340,1775646647946,-2000.0,0.00015342,2]
[420066341,1775646647955,-286.49380402,0.00015342,2]
[420066342,1775646647965,-2000.0,0.00015342,2]
[420066343,1775646647975,-272.16418036,0.00015342,2]
[420066344,1775646647986,-2000.0,0.00015342,2]
[420066345,1775646647995,-2000.0,0.00015342,2]
[420066346,1775646648006,-150.0,0.0001535,2]
[420066347,1775646648015,-150.0,0.0001535,2]
[420066348,1775646648025,-506.0,0.00015368,3]
[420066349,1775646648034,-150.0,0.00015374,2]
[420066350,1775646648044,-3200.0,0.00015376,2]
[420066351,1775646648053,-150.0,0.00015385,2]
[420066352,1775646648063,-150.0,0.00015385,2]
[420066353,1775646648072,-150.0,0.00015385,2]
[420066354,1775646648081,-150.0,0.00015404,2]
[420066355,1775646648092,-150.0,0.00015404,2]
[420066356,1775646648102,-150.0,0.00015408,2]
[420066357,1775646648111,-150.0,0.00015428,2]
[420066358,1775646648122,-3200.0,0.00015436,2]
[420066359,1775646648131,-3200.0,0.00015452,2]
[420066360,1775646648140,-151.0,0.00015462,2]
[420066361,1775646648150,-151.0,0.00015462,2]
[420066362,1775646648159,-151.0,0.00015462,2]
[420066363,1775646648169,-151.0,0.00015462,2]
[420066364,1775646648179,-151.0,0.00015462,2]
[420066365,1775646648188,-151.0,0.00015462,2]
[420066366,1775646648198,-151.0,0.00015462,2]
[420066367,1775646648208,-151.0,0.00015462,2]
[420066368,1775646648217,-151.0,0.00015462,2]
[420066369,1775646648227,-151.0,0.00015462,2]
[420066370,1775646648237,-151.0,0.00015462,2]
[420066371,1775646648247,-151.0,0.00015462,2]
[420066372,1775646648258,-151.0,0.00015462,2]
[420066373,1775646648268,-151.0,0.00015462,2]
[420066374,1775646648277,-163.489759,0.00015462,2]
[420066375,1775646648288,-151.0,0.00015462,2]
[420066376,1775646648299,-163.489759,0.00015462,2]
[420066377,1775646648308,-163.489759,0.00015462,2]
[420066378,1775646648318,-151.0,0.00015462,2]
[420066379,1775646648328,-163.489759,0.00015462,2]
[420066380,1775646648338,-151.0,0.00015462,2]
[420066381,1775646648348,-151.0,0.00015462,2]
[420066382,1775646648358,-151.0,0.00015462,2]
[420066383,1775646648367,-151.0,0.00015462,2]
[420066384,1775646648378,-151.0,0.00015462,2]
[420066385,1775646648388,-151.0,0.00015462,2]
[420066386,1775646648397,-153.872155,0.00015462,2]
[420066387,1775646648406,-151.0,0.00015462,2]
[420066388,1775646648416,-151.0,0.00015462,2]
[420066389,1775646648426,-151.0,0.00015462,2]
[420066390,1775646648436,-151.0,0.00015462,2]
[420066391,1775646648445,-158.663675,0.00015462,2]
[420066392,1775646648454,-151.0,0.00015462,2]
[420066393,1775646648464,-151.0,0.00015462,2]
[420066394,1775646648474,-150.0,0.00015463,2]
[420066395,1775646648484,-150.0,0.00015463,2]
[420066396,1775646648494,-150.0,0.00015466,2]
[420066397,1775646648504,-350.0,0.00015472,2]
[420066398,1775646648513,-150.0,0.00015482,2]
[420066399,1775646648522,-350.0,0.00015499,2]
[420066400,1775646648531,-150.0,0.00015502,2]
[420066401,1775646648540,-150.0,0.00015502,2]
[420066402,1775646648551,-150.0,0.00015502,2]
[420066403,1775646648561,-4000.0,0.00015507,2]
[420066404,1775646648571,-2789.0,0.00015512,2]
[420066405,1775646648580,-150.0,0.00015524,2]
[420066406,1775646648590,-150.0,0.00015524,2]
[420066407,1775646648600,-151.0,0.00015536,2]
[420066408,1775646648610,-151.0,0.00015536,2]
[420066409,1775646648620,-253.864605,0.00015536,2]
[420066410,1775646648629,-253.864605,0.00015536,2]
[420066411,1775646648639,-253.864605,0.00015536,2]
[420066412,1775646648648,-253.864605,0.00015536,2]
[420066413,1775646648658,-208.982357,0.00015536,2]
[420066414,1775646648667,-208.982357,0.00015536,2]
[420066415,1775646648677,-208.982357,0.00015536,2]
[420066416,1775646648688,-208.982357,0.00015536,2]
[420066417,1775646648698,-151.0,0.00015536,2]
[420066418,1775646648708,-151.0,0.00015536,2]
[420066419,1775646648718,-151.0,0.00015536,2]
[420066420,1775646648728,-151.0,0.00015536,2]
[420066421,1775646648738,-3200.0,0.00015536,2]
[420066422,1775646648748,-150.0,0.00015536,2]
[420066423,1775646648758,-150.0,0.00015542,2]
[420066424,1775646648768,-150.0,0.00015542,2]
[420066425,1775646648778,-151.0,0.00015562,2]
[420066426,1775646648787,-177.799501,0.00015562,2]
[420066427,1775646648796,-151.0,0.00015562,2]
[420066428,1775646648806,-151.0,0.00015562,2]
[420066429,1775646648815,-241.925939,0.00015562,2]
[420066430,1775646648825,-151.0,0.00015562,2]
[420066431,1775646648834,-151.0,0.00015562,2]
[420066432,1775646648844,-151.0,0.00015562,2]
[420066433,1775646648853,-189.331082,0.00015562,2]
[420066434,1775646648863,-151.0,0.00015562,2]
[420066435,1775646648873,-151.0,0.00015562,2]
[420066436,1775646648883,-151.0,0.00015562,2]
[420066437,1775646648892,-151.0,0.00015562,2]
[420066438,1775646648902,-151.0,0.00015562,2]
[420066439,1775646648912,-151.0,0.00015562,2]
[420066440,1775646648921,-151.0,0.00015562,2]
[420066441,1775646648931,-151.0,0.00015562,2]
[420066442,1775646648940,-151.0,0.00015562,2]
[420066443,1775646648950,-151.0,0.00015562,2]
[420066444,1775646648960,-151.0,0.00015562,2]
[420066445,1775646648969,-150.0,0.00015582,2]
[420066446,1775646648979,-150.0,0.0001559,2]
[420066447,1775646648988,-450.0,0.0001559,2]
[420066448,1775646648998,-450.0,0.0001559,2]
[420066449,1775646649008,-450.0,0.0001559,2]
[420066450,1775646649018,-450.0,0.0001559,2]
[420066451,1775646649028,-450.0,0.0001559,2]
[420066452,1775646649037,-450.0,0.0001559,2]
[420066453,1775646649046,-450.0,0.0001559,2]
[420066454,1775646649056,-450.0,0.0001559,2]
[420066455,1775646649066,-450.0,0.0001559,2]
[420066456,1775646649075,-198.0,0.0001559,2]
[420066457,1775646649085,-342.85235814,0.000156,2]
[420066458,1775646649094,-923.77800911,0.000156,2]
[420066459,1775646649104,-150.0,0.00015601,2]
[420066460,1775646649114,-150.0,0.00015601,2]
[420066461,1775646649124,-3200.0,0.00015609,2]
[420066462,1775646649134,-3200.0,0.00015615,2]
[420066463,1775646649144,-151.0,0.00015615,2]
[420066464,1775646649153,-151.0,0.00015615,2]
[420066465,1775646649164,-151.0,0.00015615,2]
[420066466,1775646649174,-151.0,0.00015615,2]
[420066467,1775646649183,-151.0,0.00015615,2]
[420066468,1775646649193,-151.0,0.00015615,2]
[420066469,1775646649203,-155.753542,0.00015615,2]
[420066470,1775646649212,-237.773892,0.00015615,2]
[420066471,1775646649221,-237.773892,0.00015615,2]
[420066472,1775646649231,-237.773892,0.00015615,2]
[420066473,1775646649241,-237.773892,0.00015615,2]
[420066474,1775646649251,-151.0,0.00015615,2]
[420066475,1775646649261,-151.0,0.00015615,2]
[420066476,1775646649271,-151.0,0.00015615,2]
[420066477,1775646649280,-151.0,0.00015615,2]
[420066478,1775646649290,-151.0,0.00015615,2]
[420066479,1775646649299,-156.921063,0.00015615,2]
[420066480,1775646649309,-151.0,0.00015615,2]
[420066481,1775646649319,-150.0,0.0001562,2]
[420066482,1775646649328,-150.0,0.0001562,2]
[420066483,1775646649339,-150.0,0.0001564,2]
[420066484,1775646649349,-150.0,0.00015644,2]
[420066485,1775646649358,-151.0,0.00015667,2]
[420066486,1775646649368,-151.0,0.00015667,2]
[420066487,1775646649377,-218.2,0.00015667,2]
[420066488,1775646649388,-151.0,0.00015667,2]
[420066489,1775646649397,-151.0,0.00015667,2]
[420066490,1775646649407,-151.0,0.00015667,2]
[420066491,1775646649416,-151.0,0.00015667,2]
[420066492,1775646649426,-151.0,0.00015667,2]
[420066493,1775646649437,-177.008869,0.00015667,2]
[420066494,1775646649447,-151.0,0.00015667,2]
[420066495,1775646649457,-177.008869,0.00015667,2]
[420066496,1775646649467,-151.0,0.00015667,2]
[420066497,1775646649477,-177.008869,0.00015667,2]
[420066498,1775646649486,-151.0,0.00015667,2]
[420066499,1775646649496,-177.008869,0.00015667,2]
[420066500,1775646649506,-151.0,0.00015667,2]
[420066501,1775646649516,-151.0,0.00015667,2]
[420066502,1775646649526,-49954.4844927,0.00015667,2]
[420066503,1775646649539,-1573.0,0.0001568,2]
[420066504,1775646649549,-672.69163722,0.0001568,2]
[420066505,1775646649559,-153.03603175,0.00015699,2]
[420066506,1775646649569,-240.76039255,0.00015699,2]